[Event "Titled Tuesday Blitz December 13 Late 2022"]
[White "Jimenez Almeida, Luis David"]
[Black "Young, Ryan"]
[WhiteFideId "22242244"]
[BlackFideId "2049945"]
[WhiteElo "2158"]
[BlackElo "2330"]
[Result "1-0"]
[Round "11"]
[TimeControl "180+1"]
[Date "2022.12.14"]
[WhiteClock "0:01:53"]
[BlackClock "0:00:43"]

1. e4 {[%clk 0:03:00]}  e5 {[%clk 0:02:59]} 2. Nf3 {[%clk 0:03:00]}  Nc6 {[%clk 0:03:00]} 3. Bb5 {[%clk 0:03:00]}  a6 {[%clk 0:03:00]} 4. Ba4 {[%clk 0:03:00]}  Nf6 {[%clk 0:03:00]} 5. O-O {[%clk 0:03:00]}  Be7 {[%clk 0:03:00]} 6. d3 {[%clk 0:03:00]}  b5 {[%clk 0:02:38]} 7. Bb3 {[%clk 0:02:59]}  d6 {[%clk 0:02:39]} 8. Re1 {[%clk 0:02:59]}  O-O {[%clk 0:02:32]} 9. c3 {[%clk 0:02:59]}  Nb8 {[%clk 0:02:10]} 10. a4 {[%clk 0:02:58]}  Bb7 {[%clk 0:02:07]} 11. Nbd2 {[%clk 0:02:58]}  Nbd7 {[%clk 0:02:06]} 12. Bc2 {[%clk 0:02:56]}  c5 {[%clk 0:02:04]} 13. Nf1 {[%clk 0:02:55]}  g6 {[%clk 0:02:03]} 14. Bh6 {[%clk 0:02:52]}  Re8 {[%clk 0:02:02]} 15. h3 {[%clk 0:02:52]}  Bf8 {[%clk 0:01:58]} 16. Bg5 {[%clk 0:02:45]}  Qc7 {[%clk 0:01:57]} 17. Ne3 {[%clk 0:02:43]}  d5 {[%clk 0:01:49]} 18. Ng4 {[%clk 0:02:21]}  Nxg4 {[%clk 0:01:46]} 19. hxg4 {[%clk 0:02:22]}  d4 {[%clk 0:01:41]} 20. Qd2 {[%clk 0:02:16]}  Bg7 {[%clk 0:01:36]} 21. Kh2 {[%clk 0:02:13]}  f6 {[%clk 0:01:10]} 22. Bh6 {[%clk 0:02:10]}  g5 {[%clk 0:01:03]} 23. Bxg7 {[%clk 0:01:57]}  Kxg7 {[%clk 0:01:03]} 24. Ng1 {[%clk 0:01:54]}  Nf8 {[%clk 0:00:57]} 25. Ne2 {[%clk 0:01:54]}  Ng6 {[%clk 0:00:56]} 26. Ng3 {[%clk 0:01:54]}  Qd6 {[%clk 0:00:43]} 27. Nf5+ {[%clk 0:01:53]} 1-0


[Site "https://www.chess.com"]

[Event "Titled Tuesday Blitz December 13 Late 2022"]
[White "Jobava, Baadur"]
[Black "O`Gorman, Tom"]
[WhiteFideId "13601520"]
[BlackFideId "2508249"]
[WhiteElo "2582"]
[BlackElo "2271"]
[Result "1-0"]
[Round "11"]
[TimeControl "180+1"]
[Date "2022.12.13"]
[WhiteClock "0:02:34"]
[BlackClock "0:02:24"]

1. b3 {[%clk 0:02:49]}  d5 {[%clk 0:02:57]} 2. Bb2 {[%clk 0:02:49]}  Nf6 {[%clk 0:02:54]} 3. d3 {[%clk 0:02:48]}  e6 {[%clk 0:02:53]} 4. Nd2 {[%clk 0:02:49]}  c5 {[%clk 0:02:52]} 5. g3 {[%clk 0:02:50]}  Nc6 {[%clk 0:02:52]} 6. Bg2 {[%clk 0:02:51]}  Be7 {[%clk 0:02:52]} 7. e4 {[%clk 0:02:52]}  O-O {[%clk 0:02:52]} 8. Ne2 {[%clk 0:02:52]}  b6 {[%clk 0:02:51]} 9. O-O {[%clk 0:02:53]}  Bb7 {[%clk 0:02:51]} 10. h3 {[%clk 0:02:52]}  Rc8 {[%clk 0:02:48]} 11. f4 {[%clk 0:02:52]}  dxe4 {[%clk 0:02:41]} 12. dxe4 {[%clk 0:02:52]}  e5 {[%clk 0:02:36]} 13. fxe5 {[%clk 0:02:42]}  Nd7 {[%clk 0:02:35]} 14. Nf3 {[%clk 0:02:42]}  Qc7 {[%clk 0:02:31]} 15. e6 {[%clk 0:02:40]}  fxe6 {[%clk 0:02:29]} 16. Nf4 {[%clk 0:02:40]}  Rxf4 {[%clk 0:02:24]} 17. gxf4 {[%clk 0:02:39]}  Qxf4 {[%clk 0:02:24]} 18. Qxd7 {[%clk 0:02:34]} 1-0


[Site "https://www.chess.com"]

[Event "Titled Tuesday Blitz December 13 Late 2022"]
[White "Joubert, Dantelle"]
[Black "Stanisz, Patryk"]
[WhiteFideId "14310813"]
[BlackFideId "1123106"]
[WhiteElo "1507"]
[BlackElo "2069"]
[Result "0-1"]
[Round "11"]
[TimeControl "180+1"]
[Date "2022.12.14"]
[WhiteClock "0:00:02"]
[BlackClock "0:00:03"]

1. d4 {[%clk 0:03:00]}  d5 {[%clk 0:02:56]} 2. c4 {[%clk 0:02:59]}  c6 {[%clk 0:02:53]} 3. Nc3 {[%clk 0:02:57]}  Nf6 {[%clk 0:02:53]} 4. Nf3 {[%clk 0:02:56]}  e6 {[%clk 0:02:44]} 5. e3 {[%clk 0:02:54]}  Nbd7 {[%clk 0:02:44]} 6. a4 {[%clk 0:02:48]}  Bd6 {[%clk 0:02:39]} 7. Be2 {[%clk 0:02:46]}  Qe7 {[%clk 0:02:38]} 8. O-O {[%clk 0:02:43]}  O-O {[%clk 0:02:37]} 9. Qc2 {[%clk 0:02:41]}  b6 {[%clk 0:02:25]} 10. e4 {[%clk 0:02:37]}  dxe4 {[%clk 0:02:23]} 11. Nxe4 {[%clk 0:02:37]}  Nxe4 {[%clk 0:02:23]} 12. Qxe4 {[%clk 0:02:36]}  Bb7 {[%clk 0:02:22]} 13. Ng5 {[%clk 0:02:29]}  Nf6 {[%clk 0:02:18]} 14. Qh4 {[%clk 0:02:18]}  h6 {[%clk 0:02:15]} 15. Nf3 {[%clk 0:02:18]}  c5 {[%clk 0:02:12]} 16. Be3 {[%clk 0:02:07]}  Rac8 {[%clk 0:02:00]} 17. b3 {[%clk 0:02:03]}  Ne4 {[%clk 0:01:54]} 18. Qxe7 {[%clk 0:01:47]}  Bxe7 {[%clk 0:01:55]} 19. Rac1 {[%clk 0:01:29]}  Rfd8 {[%clk 0:01:52]} 20. Rfd1 {[%clk 0:01:23]}  cxd4 {[%clk 0:01:49]} 21. Nxd4 {[%clk 0:01:21]}  Bf6 {[%clk 0:01:26]} 22. f3 {[%clk 0:01:06]}  Nc5 {[%clk 0:01:22]} 23. Rb1 {[%clk 0:00:56]}  h5 {[%clk 0:01:08]} 24. Kf2 {[%clk 0:00:53]}  g6 {[%clk 0:01:08]} 25. Nb5 {[%clk 0:00:44]}  a6 {[%clk 0:00:42]} 26. Nd4 {[%clk 0:00:36]}  Rc7 {[%clk 0:00:28]} 27. Nc2 {[%clk 0:00:17]}  Rcd7 {[%clk 0:00:26]} 28. Rxd7 {[%clk 0:00:17]}  Rxd7 {[%clk 0:00:26]} 29. a5 {[%clk 0:00:16]}  Nd3+ {[%clk 0:00:04]} 30. Bxd3 {[%clk 0:00:15]}  Rxd3 {[%clk 0:00:05]} 31. Bxb6 {[%clk 0:00:11]}  Rd2+ {[%clk 0:00:05]} 32. Ke3 {[%clk 0:00:11]}  Rxc2 {[%clk 0:00:05]} 33. b4 {[%clk 0:00:10]}  Rxc4 {[%clk 0:00:05]} 34. b5 {[%clk 0:00:09]}  axb5 {[%clk 0:00:06]} 35. Rxb5 {[%clk 0:00:08]}  Ba6 {[%clk 0:00:04]} 36. Rb1 {[%clk 0:00:08]}  Kg7 {[%clk 0:00:04]} 37. Ba7 {[%clk 0:00:04]}  Rc2 {[%clk 0:00:04]} 38. Rb6 {[%clk 0:00:03]}  Re2+ {[%clk 0:00:04]} 39. Kf4 {[%clk 0:00:01]}  g5+ {[%clk 0:00:04]} 40. Kg3 {[%clk 0:00:01]}  h4+ {[%clk 0:00:04]} 41. Kh3 {[%clk 0:00:02]}  Bd3 {[%clk 0:00:03]} 0-1


[Site "https://www.chess.com"]

[Event "Titled Tuesday Blitz December 13 Late 2022"]
[White "Kleiman, Jake"]
[Black "Mazurkiewicz, Michal"]
[WhiteFideId "2020041"]
[BlackFideId "1124943"]
[WhiteElo "2613"]
[BlackElo "2081"]
[Result "0-1"]
[Round "11"]
[TimeControl "180+1"]
[Date "2022.12.14"]
[WhiteClock "0:01:38"]
[BlackClock "0:01:07"]

1. b3 {[%clk 0:03:00]}  Nf6 {[%clk 0:02:57]} 2. Bb2 {[%clk 0:03:01]}  g6 {[%clk 0:02:58]} 3. e3 {[%clk 0:03:02]}  Bg7 {[%clk 0:02:58]} 4. Nf3 {[%clk 0:03:03]}  O-O {[%clk 0:02:59]} 5. Be2 {[%clk 0:03:03]}  d6 {[%clk 0:02:59]} 6. O-O {[%clk 0:03:04]}  Nbd7 {[%clk 0:03:00]} 7. c4 {[%clk 0:03:05]}  e5 {[%clk 0:03:00]} 8. d4 {[%clk 0:03:05]}  e4 {[%clk 0:03:01]} 9. Nfd2 {[%clk 0:03:05]}  Re8 {[%clk 0:03:02]} 10. Nc3 {[%clk 0:03:06]}  c6 {[%clk 0:03:02]} 11. a4 {[%clk 0:03:05]}  Nf8 {[%clk 0:03:01]} 12. a5 {[%clk 0:03:06]}  a6 {[%clk 0:03:01]} 13. b4 {[%clk 0:03:05]}  h5 {[%clk 0:03:00]} 14. b5 {[%clk 0:03:05]}  Bf5 {[%clk 0:02:55]} 15. Qa4 {[%clk 0:02:58]}  Rc8 {[%clk 0:02:46]} 16. bxc6 {[%clk 0:02:57]}  bxc6 {[%clk 0:02:46]} 17. Rfd1 {[%clk 0:02:55]}  N8h7 {[%clk 0:02:45]} 18. c5 {[%clk 0:02:50]}  d5 {[%clk 0:02:45]} 19. Bxa6 {[%clk 0:02:49]}  Rb8 {[%clk 0:02:45]} 20. Ra2 {[%clk 0:02:46]}  Ng4 {[%clk 0:02:45]} 21. Nf1 {[%clk 0:02:40]}  Qh4 {[%clk 0:02:40]} 22. Bc1 {[%clk 0:02:39]}  Ng5 {[%clk 0:02:34]} 23. Qxc6 {[%clk 0:02:33]}  Nf3+ {[%clk 0:02:17]} 24. gxf3 {[%clk 0:02:31]}  exf3 {[%clk 0:02:17]} 25. Qxd5 {[%clk 0:02:25]}  Qh3 {[%clk 0:02:07]} 26. Qxf3 {[%clk 0:02:14]}  Qxf3 {[%clk 0:02:08]} 27. Re2 {[%clk 0:01:53]}  Be4 {[%clk 0:02:01]} 28. Nxe4 {[%clk 0:01:51]}  Rxe4 {[%clk 0:01:45]} 29. Nd2 {[%clk 0:01:51]}  Qh3 {[%clk 0:01:35]} 30. f3 {[%clk 0:01:52]}  Rxe3 {[%clk 0:01:15]} 31. fxg4 {[%clk 0:01:48]}  Rxe2 {[%clk 0:01:15]} 32. Bxe2 {[%clk 0:01:47]}  Qe3+ {[%clk 0:01:08]} 33. Kf1 {[%clk 0:01:46]}  Bxd4 {[%clk 0:01:08]} 34. Nf3 {[%clk 0:01:38]}  Qf2# {[%clk 0:01:07]} 0-1


[Site "https://www.chess.com"]

[Event "Titled Tuesday Blitz December 13 Late 2022"]
[White "Korchmar, Vasiliy"]
[Black "Fernandez De La Vara, Arnaldo"]
[WhiteFideId "24131750"]
[BlackFideId "3518388"]
[WhiteElo "2370"]
[BlackElo "2387"]
[Result "0-1"]
[Round "11"]
[TimeControl "180+1"]
[Date "2022.12.13"]
[WhiteClock "0:00:05"]
[BlackClock "0:00:03"]

1. e4 {[%clk 0:03:00]}  c5 {[%clk 0:03:00]} 2. Nf3 {[%clk 0:03:01]}  e6 {[%clk 0:03:01]} 3. d4 {[%clk 0:03:01]}  cxd4 {[%clk 0:03:02]} 4. Nxd4 {[%clk 0:03:01]}  a6 {[%clk 0:03:03]} 5. Nc3 {[%clk 0:02:59]}  Qc7 {[%clk 0:03:03]} 6. Be2 {[%clk 0:02:59]}  Nf6 {[%clk 0:03:03]} 7. O-O {[%clk 0:02:59]}  d6 {[%clk 0:03:04]} 8. f4 {[%clk 0:02:52]}  Nbd7 {[%clk 0:03:05]} 9. Be3 {[%clk 0:02:49]}  b5 {[%clk 0:03:05]} 10. a3 {[%clk 0:02:32]}  Bb7 {[%clk 0:03:04]} 11. Bf3 {[%clk 0:02:32]}  Nc5 {[%clk 0:03:03]} 12. e5 {[%clk 0:02:18]}  dxe5 {[%clk 0:03:04]} 13. fxe5 {[%clk 0:02:11]}  Qxe5 {[%clk 0:03:04]} 14. Bf4 {[%clk 0:02:09]}  Bxf3 {[%clk 0:03:04]} 15. Rxf3 {[%clk 0:02:00]}  Qh5 {[%clk 0:03:04]} 16. b4 {[%clk 0:01:38]}  Rd8 {[%clk 0:02:15]} 17. bxc5 {[%clk 0:01:30]}  Bxc5 {[%clk 0:02:14]} 18. Rd3 {[%clk 0:01:22]}  Rxd4 {[%clk 0:02:13]} 19. Rxd4 {[%clk 0:01:21]}  e5 {[%clk 0:02:13]} 20. Bxe5 {[%clk 0:01:09]}  Qxe5 {[%clk 0:02:09]} 21. Ne2 {[%clk 0:01:09]}  O-O {[%clk 0:02:02]} 22. Kh1 {[%clk 0:00:51]}  Bxd4 {[%clk 0:01:54]} 23. Nxd4 {[%clk 0:00:51]}  Rc8 {[%clk 0:00:59]} 24. Qg1 {[%clk 0:00:49]}  h6 {[%clk 0:00:50]} 25. a4 {[%clk 0:00:48]}  b4 {[%clk 0:00:41]} 26. Re1 {[%clk 0:00:45]}  Qc5 {[%clk 0:00:34]} 27. Qf2 {[%clk 0:00:40]}  Rd8 {[%clk 0:00:30]} 28. Rd1 {[%clk 0:00:40]}  Ne4 {[%clk 0:00:25]} 29. Qe3 {[%clk 0:00:36]}  Nc3 {[%clk 0:00:25]} 30. Rd3 {[%clk 0:00:33]}  Nxa4 {[%clk 0:00:23]} 31. Qf4 {[%clk 0:00:22]}  Nb2 {[%clk 0:00:13]} 32. Rd2 {[%clk 0:00:21]}  Nc4 {[%clk 0:00:12]} 33. Rd3 {[%clk 0:00:19]}  Qe5 {[%clk 0:00:11]} 34. Qh4 {[%clk 0:00:14]}  g5 {[%clk 0:00:08]} 35. Qf2 {[%clk 0:00:14]}  Nb2 {[%clk 0:00:05]} 36. Rd2 {[%clk 0:00:12]}  Nc4 {[%clk 0:00:04]} 37. Rd3 {[%clk 0:00:11]}  Qf4 {[%clk 0:00:03]} 38. Qg1 {[%clk 0:00:06]}  Ne5 {[%clk 0:00:04]} 39. Rd1 {[%clk 0:00:05]}  Ng4 {[%clk 0:00:03]} 0-1


[Site "https://www.chess.com"]

[Event "Titled Tuesday Blitz December 13 Late 2022"]
[White "Kovacevic, Radmila"]
[Black "Donskov, Anatoly"]
[WhiteFideId "933171"]
[BlackFideId "24143413"]
[WhiteElo "2244"]
[BlackElo "2219"]
[Result "0-1"]
[Round "11"]
[TimeControl "180+1"]
[Date "2022.12.14"]
[WhiteClock "0:00:05"]
[BlackClock "0:00:16"]

1. e4 {[%clk 0:03:00]}  c5 {[%clk 0:02:58]} 2. Be2 {[%clk 0:02:59]}  Nc6 {[%clk 0:02:58]} 3. f4 {[%clk 0:02:59]}  g5 {[%clk 0:02:56]} 4. fxg5 {[%clk 0:02:58]}  h6 {[%clk 0:02:57]} 5. g6 {[%clk 0:02:46]}  fxg6 {[%clk 0:02:57]} 6. Bh5 {[%clk 0:02:42]}  Ne5 {[%clk 0:02:51]} 7. Nf3 {[%clk 0:02:27]}  gxh5 {[%clk 0:02:42]} 8. Nxe5 {[%clk 0:02:27]}  Nf6 {[%clk 0:02:43]} 9. O-O {[%clk 0:02:17]}  d6 {[%clk 0:02:30]} 10. Rxf6 {[%clk 0:02:08]}  dxe5 {[%clk 0:02:30]} 11. Qxh5+ {[%clk 0:02:07]}  Kd7 {[%clk 0:02:30]} 12. Rf3 {[%clk 0:01:42]}  Kc6 {[%clk 0:02:10]} 13. Rd3 {[%clk 0:01:13]}  Qc7 {[%clk 0:01:57]} 14. Qe8+ {[%clk 0:00:35]}  Kb6 {[%clk 0:01:26]} 15. Nc3 {[%clk 0:00:34]}  Qc6 {[%clk 0:00:41]} 16. Nd5+ {[%clk 0:00:33]}  Ka6 {[%clk 0:00:42]} 17. Ra3+ {[%clk 0:00:31]}  Kb5 {[%clk 0:00:42]} 18. Nc7+ {[%clk 0:00:29]}  Kb6 {[%clk 0:00:37]} 19. Nxa8+ {[%clk 0:00:29]}  Kb5 {[%clk 0:00:37]} 20. Rb3+ {[%clk 0:00:24]}  Ka6 {[%clk 0:00:35]} 21. Qf7 {[%clk 0:00:22]}  b5 {[%clk 0:00:33]} 22. a4 {[%clk 0:00:20]}  b4 {[%clk 0:00:31]} 23. Qf1+ {[%clk 0:00:18]}  Kb7 {[%clk 0:00:31]} 24. c3 {[%clk 0:00:18]}  Be6 {[%clk 0:00:30]} 25. c4 {[%clk 0:00:15]}  Bg7 {[%clk 0:00:28]} 26. Re3 {[%clk 0:00:14]}  Rxa8 {[%clk 0:00:27]} 27. d3 {[%clk 0:00:14]}  Rf8 {[%clk 0:00:27]} 28. Qe1 {[%clk 0:00:13]}  a5 {[%clk 0:00:25]} 29. Bd2 {[%clk 0:00:12]}  Qd6 {[%clk 0:00:26]} 30. h3 {[%clk 0:00:10]}  Qd4 {[%clk 0:00:26]} 31. Kh2 {[%clk 0:00:09]}  Bf6 {[%clk 0:00:25]} 32. Rb1 {[%clk 0:00:09]}  Bg5 {[%clk 0:00:24]} 33. Rg3 {[%clk 0:00:09]}  Bf4 {[%clk 0:00:21]} 34. Bxf4 {[%clk 0:00:08]}  exf4 {[%clk 0:00:22]} 35. Rf3 {[%clk 0:00:08]}  Bd7 {[%clk 0:00:19]} 36. Qf2 {[%clk 0:00:08]}  e5 {[%clk 0:00:19]} 37. Qxd4 {[%clk 0:00:08]}  cxd4 {[%clk 0:00:20]} 38. c5 {[%clk 0:00:08]}  Bxa4 {[%clk 0:00:20]} 39. c6+ {[%clk 0:00:06]}  Kxc6 {[%clk 0:00:20]} 40. Rc1+ {[%clk 0:00:07]}  Kb7 {[%clk 0:00:20]} 41. Rc5 {[%clk 0:00:07]}  Kb6 {[%clk 0:00:18]} 42. Rxe5 {[%clk 0:00:07]}  Bc6 {[%clk 0:00:18]} 43. Rf5 {[%clk 0:00:07]}  Rxf5 {[%clk 0:00:18]} 44. exf5 {[%clk 0:00:06]}  Bxf3 {[%clk 0:00:19]} 45. gxf3 {[%clk 0:00:06]}  Kc5 {[%clk 0:00:20]} 46. h4 {[%clk 0:00:06]}  a4 {[%clk 0:00:20]} 47. Kh3 {[%clk 0:00:04]}  a3 {[%clk 0:00:20]} 48. f6 {[%clk 0:00:05]}  Kd6 {[%clk 0:00:20]} 49. bxa3 {[%clk 0:00:06]}  bxa3 {[%clk 0:00:20]} 50. Kg4 {[%clk 0:00:06]}  a2 {[%clk 0:00:21]} 51. Kf5 {[%clk 0:00:06]}  a1=Q {[%clk 0:00:21]} 52. Kg6 {[%clk 0:00:05]}  Qa8 {[%clk 0:00:18]} 53. Kg7 {[%clk 0:00:05]}  Ke6 {[%clk 0:00:17]} 54. h5 {[%clk 0:00:05]}  Qe8 {[%clk 0:00:16]} 55. Kxh6 {[%clk 0:00:04]}  Kxf6 {[%clk 0:00:14]} 56. Kh7 {[%clk 0:00:04]}  Qf7+ {[%clk 0:00:15]} 57. Kh6 {[%clk 0:00:05]}  Qg7# {[%clk 0:00:16]} 0-1


[Site "https://www.chess.com"]

[Event "Titled Tuesday Blitz December 13 Late 2022"]
[White "Liu, Kelsey"]
[Black "Kujawski, Adam"]
[WhiteFideId "30944481"]
[BlackFideId "1100920"]
[WhiteElo "2298"]
[BlackElo "2054"]
[Result "1-0"]
[Round "11"]
[TimeControl "180+1"]
[Date "2022.12.14"]
[WhiteClock "0:01:38"]
[BlackClock "0:00:10"]

1. e4 {[%clk 0:03:00]}  e5 {[%clk 0:02:58]} 2. Nf3 {[%clk 0:03:01]}  Nc6 {[%clk 0:02:58]} 3. Bb5 {[%clk 0:03:01]}  a6 {[%clk 0:02:58]} 4. Ba4 {[%clk 0:03:02]}  Nf6 {[%clk 0:02:59]} 5. Qe2 {[%clk 0:03:03]}  b5 {[%clk 0:02:53]} 6. Bb3 {[%clk 0:03:03]}  Bc5 {[%clk 0:02:54]} 7. d3 {[%clk 0:03:00]}  h6 {[%clk 0:02:54]} 8. c3 {[%clk 0:03:00]}  O-O {[%clk 0:02:53]} 9. O-O {[%clk 0:02:58]}  Re8 {[%clk 0:02:52]} 10. Be3 {[%clk 0:02:59]}  Bxe3 {[%clk 0:02:50]} 11. fxe3 {[%clk 0:03:00]}  d6 {[%clk 0:02:47]} 12. Bd5 {[%clk 0:02:56]}  Nxd5 {[%clk 0:02:41]} 13. exd5 {[%clk 0:02:57]}  Ne7 {[%clk 0:02:39]} 14. e4 {[%clk 0:02:57]}  Ng6 {[%clk 0:02:38]} 15. g3 {[%clk 0:02:56]}  Bh3 {[%clk 0:02:23]} 16. Rf2 {[%clk 0:02:56]}  f5 {[%clk 0:01:31]} 17. Nbd2 {[%clk 0:02:55]}  f4 {[%clk 0:01:27]} 18. Nf1 {[%clk 0:02:52]}  Rf8 {[%clk 0:01:25]} 19. Kh1 {[%clk 0:02:51]}  Qd7 {[%clk 0:01:15]} 20. Nh4 {[%clk 0:02:25]}  Nxh4 {[%clk 0:01:14]} 21. gxh4 {[%clk 0:02:26]}  f3 {[%clk 0:01:07]} 22. Rxf3 {[%clk 0:02:18]}  Rxf3 {[%clk 0:01:04]} 23. Qxf3 {[%clk 0:02:18]}  Rf8 {[%clk 0:01:04]} 24. Qe2 {[%clk 0:02:13]}  Rf4 {[%clk 0:00:51]} 25. Ne3 {[%clk 0:02:13]}  Qf7 {[%clk 0:00:46]} 26. Kg1 {[%clk 0:02:05]}  Qg6+ {[%clk 0:00:30]} 27. Kh1 {[%clk 0:02:05]}  Qf6 {[%clk 0:00:26]} 28. Rg1 {[%clk 0:01:54]}  Rf2 {[%clk 0:00:23]} 29. Qd1 {[%clk 0:01:42]}  Qf4 {[%clk 0:00:20]} 30. Rg3 {[%clk 0:01:42]}  h5 {[%clk 0:00:17]} 31. Kg1 {[%clk 0:01:41]}  Rxb2 {[%clk 0:00:15]} 32. Qxh5 {[%clk 0:01:38]}  Rb1+ {[%clk 0:00:14]} 33. Nd1 {[%clk 0:01:38]}  Rxd1+ {[%clk 0:00:12]} 34. Qxd1 {[%clk 0:01:38]}  Kf7 {[%clk 0:00:10]} 35. Rf3 {[%clk 0:01:38]} 1-0


[Site "https://www.chess.com"]

[Event "Titled Tuesday Blitz December 13 Late 2022"]
[White "Marchesich, Giovanni"]
[Black "Mieles Palau, Daniel"]
[WhiteFideId "2824790"]
[BlackFideId "3600467"]
[WhiteElo "2200"]
[BlackElo "2344"]
[Result "0-1"]
[Round "11"]
[TimeControl "180+1"]
[Date "2022.12.14"]
[WhiteClock "0:00:07"]
[BlackClock "0:01:37"]

1. e4 {[%clk 0:03:00]}  c5 {[%clk 0:02:56]} 2. Nf3 {[%clk 0:02:59]}  Nc6 {[%clk 0:02:56]} 3. Nc3 {[%clk 0:02:52]}  g6 {[%clk 0:02:56]} 4. d4 {[%clk 0:02:51]}  cxd4 {[%clk 0:02:57]} 5. Nxd4 {[%clk 0:02:52]}  Bg7 {[%clk 0:02:57]} 6. Nb3 {[%clk 0:02:51]}  a5 {[%clk 0:02:56]} 7. a4 {[%clk 0:02:50]}  d6 {[%clk 0:02:56]} 8. Be3 {[%clk 0:02:49]}  Be6 {[%clk 0:02:51]} 9. Qd2 {[%clk 0:02:43]}  Nf6 {[%clk 0:02:49]} 10. f3 {[%clk 0:02:41]}  O-O {[%clk 0:02:49]} 11. O-O-O {[%clk 0:02:41]}  Nb4 {[%clk 0:02:49]} 12. Kb1 {[%clk 0:02:39]}  Rc8 {[%clk 0:02:47]} 13. Be2 {[%clk 0:02:38]}  Nd7 {[%clk 0:02:30]} 14. Bh6 {[%clk 0:02:27]}  Qb6 {[%clk 0:02:24]} 15. Bxg7 {[%clk 0:02:24]}  Kxg7 {[%clk 0:02:24]} 16. Nd4 {[%clk 0:02:15]}  Ne5 {[%clk 0:02:14]} 17. Nxe6+ {[%clk 0:02:07]}  fxe6 {[%clk 0:02:14]} 18. h4 {[%clk 0:01:52]}  h5 {[%clk 0:02:05]} 19. g4 {[%clk 0:01:44]}  Nxf3 {[%clk 0:02:03]} 20. Bxf3 {[%clk 0:01:19]}  Rxf3 {[%clk 0:02:00]} 21. gxh5 {[%clk 0:01:20]}  Rcxc3 {[%clk 0:01:56]} 22. Rhg1 {[%clk 0:01:05]}  Rxc2 {[%clk 0:01:42]} 23. Rxg6+ {[%clk 0:00:58]}  Kf7 {[%clk 0:01:42]} 24. Rg7+ {[%clk 0:00:07]}  Kxg7 {[%clk 0:01:39]} 25. Qg5+ {[%clk 0:00:08]}  Kf8 {[%clk 0:01:39]} 26. Qh6+ {[%clk 0:00:07]}  Ke8 {[%clk 0:01:39]} 27. Qh8+ {[%clk 0:00:07]}  Kd7 {[%clk 0:01:39]} 28. Rg1 {[%clk 0:00:07]}  Qxg1# {[%clk 0:01:37]} 0-1


[Site "https://www.chess.com"]

[Event "Titled Tuesday Blitz December 13 Late 2022"]
[White "Martinez Alcantara, Jose Eduardo"]
[Black "Barria Zuniga, Daniel"]
[WhiteFideId "3805662"]
[BlackFideId "3400816"]
[WhiteElo "2707"]
[BlackElo "2414"]
[Result "1-0"]
[Round "11"]
[TimeControl "180+1"]
[Date "2022.12.13"]
[WhiteClock "0:01:29"]
[BlackClock "0:00:05"]

1. a3 {[%clk 0:02:57]}  g6 {[%clk 0:02:56]} 2. h3 {[%clk 0:02:57]}  Bg7 {[%clk 0:02:56]} 3. g3 {[%clk 0:02:58]}  e5 {[%clk 0:02:56]} 4. Bg2 {[%clk 0:02:58]}  Ne7 {[%clk 0:02:57]} 5. d3 {[%clk 0:02:59]}  O-O {[%clk 0:02:57]} 6. c4 {[%clk 0:02:59]}  c6 {[%clk 0:02:56]} 7. Nf3 {[%clk 0:03:00]}  d5 {[%clk 0:02:56]} 8. cxd5 {[%clk 0:03:01]}  cxd5 {[%clk 0:02:57]} 9. O-O {[%clk 0:03:02]}  Nbc6 {[%clk 0:02:57]} 10. Nc3 {[%clk 0:03:02]}  h6 {[%clk 0:02:55]} 11. Bd2 {[%clk 0:03:01]}  Be6 {[%clk 0:02:55]} 12. Rc1 {[%clk 0:03:01]}  Qd7 {[%clk 0:02:55]} 13. b4 {[%clk 0:03:00]}  Bxh3 {[%clk 0:02:42]} 14. b5 {[%clk 0:03:00]}  Bxg2 {[%clk 0:02:36]} 15. Kxg2 {[%clk 0:03:01]}  Nd8 {[%clk 0:02:33]} 16. Qb3 {[%clk 0:03:00]}  Ne6 {[%clk 0:02:30]} 17. Rh1 {[%clk 0:03:00]}  h5 {[%clk 0:02:28]} 18. Ng5 {[%clk 0:02:55]}  Rfc8 {[%clk 0:01:56]} 19. Nxe6 {[%clk 0:02:51]}  Qxe6 {[%clk 0:01:52]} 20. Bg5 {[%clk 0:02:51]}  f6 {[%clk 0:01:49]} 21. Bd2 {[%clk 0:02:51]}  Kf7 {[%clk 0:01:46]} 22. Qb4 {[%clk 0:02:37]}  b6 {[%clk 0:01:42]} 23. e4 {[%clk 0:02:10]}  Bf8 {[%clk 0:01:30]} 24. Qb1 {[%clk 0:02:06]}  d4 {[%clk 0:01:25]} 25. Na2 {[%clk 0:02:06]}  Rxc1 {[%clk 0:01:25]} 26. Rxc1 {[%clk 0:02:07]}  Rc8 {[%clk 0:01:25]} 27. Nb4 {[%clk 0:02:05]}  Rxc1 {[%clk 0:01:23]} 28. Bxc1 {[%clk 0:02:05]}  g5 {[%clk 0:01:11]} 29. Qc2 {[%clk 0:02:05]}  h4 {[%clk 0:01:10]} 30. Qe2 {[%clk 0:02:03]}  h3+ {[%clk 0:01:06]} 31. Kh2 {[%clk 0:02:03]}  g4 {[%clk 0:01:06]} 32. f3 {[%clk 0:01:59]}  gxf3 {[%clk 0:00:30]} 33. Qxf3 {[%clk 0:02:00]}  Ng6 {[%clk 0:00:28]} 34. Nd5 {[%clk 0:01:56]}  Kg7 {[%clk 0:00:22]} 35. Qh5 {[%clk 0:01:51]}  Qc8 {[%clk 0:00:04]} 36. Bh6+ {[%clk 0:01:35]}  Kf7 {[%clk 0:00:04]} 37. Qf3 {[%clk 0:01:28]}  Bxh6 {[%clk 0:00:04]} 38. Qxf6+ {[%clk 0:01:28]}  Kg8 {[%clk 0:00:04]} 39. Qxg6+ {[%clk 0:01:28]}  Bg7 {[%clk 0:00:05]} 40. Ne7+ {[%clk 0:01:28]}  Kf8 {[%clk 0:00:05]} 41. Nxc8 {[%clk 0:01:29]} 1-0


[Site "https://www.chess.com"]